[Event "December 12 Late 2023"]
[Site "https://www.chess.com"]
[Date "2023.12.12"]
[Round "5"]
[White "Kappeler, Kaspar"]
[Black "Harrington, Steve"]
[Result "1-0"]
[Board "127"]
[TimeControl "180+1"]
[WhiteFideId "1309072"]
[BlackFideId "2038730"]
[WhiteElo "2312"]
[BlackElo "2135"]
[WhiteTeam "SUI"]
[BlackTeam "USA"]
[WhiteClock "0:00:07"]
[BlackClock "0:00:00"]

1. c4 {[%clk 0:03:00]}  e5 {[%clk 0:02:58]} 2. Nc3 {[%clk 0:02:59]}  Nf6 {[%clk 0:02:58]} 3. Nf3 {[%clk 0:02:59]}  Nc6 {[%clk 0:02:59]} 4. g3 {[%clk 0:02:59]}  Bb4 {[%clk 0:02:57]} 5. Bg2 {[%clk 0:02:54]}  O-O {[%clk 0:02:56]} 6. O-O {[%clk 0:02:53]}  Re8 {[%clk 0:02:53]} 7. Nd5 {[%clk 0:02:38]}  Bf8 {[%clk 0:02:47]} 8. d3 {[%clk 0:02:37]}  h6 {[%clk 0:02:46]} 9. Rb1 {[%clk 0:02:35]}  a5 {[%clk 0:02:45]} 10. b3 {[%clk 0:02:29]}  d6 {[%clk 0:02:45]} 11. a3 {[%clk 0:02:27]}  Be6 {[%clk 0:02:44]} 12. Nd2 {[%clk 0:02:19]}  Qd7 {[%clk 0:02:31]} 13. b4 {[%clk 0:02:13]}  axb4 {[%clk 0:02:29]} 14. axb4 {[%clk 0:02:12]}  Nd8 {[%clk 0:02:28]} 15. Nxf6+ {[%clk 0:02:03]}  gxf6 {[%clk 0:02:29]} 16. b5 {[%clk 0:01:55]}  f5 {[%clk 0:02:28]} 17. f4 {[%clk 0:01:43]}  Bg7 {[%clk 0:02:25]} 18. Nf3 {[%clk 0:01:37]}  c6 {[%clk 0:01:59]} 19. bxc6 {[%clk 0:01:31]}  bxc6 {[%clk 0:02:00]} 20. c5 {[%clk 0:01:28]}  dxc5 {[%clk 0:01:48]} 21. Nxe5 {[%clk 0:01:14]}  Qd6 {[%clk 0:01:26]} 22. Kh1 {[%clk 0:00:55]}  Ra2 {[%clk 0:01:04]} 23. Rb2 {[%clk 0:00:47]}  Ra1 {[%clk 0:00:57]} 24. Qc2 {[%clk 0:00:45]}  f6 {[%clk 0:00:50]} 25. Nc4 {[%clk 0:00:37]}  Qe7 {[%clk 0:00:41]} 26. Ra2 {[%clk 0:00:20]}  Rxa2 {[%clk 0:00:39]} 27. Qxa2 {[%clk 0:00:20]}  Bd5 {[%clk 0:00:39]} 28. Be3 {[%clk 0:00:14]}  Kh7 {[%clk 0:00:28]} 29. Bf2 {[%clk 0:00:13]}  Qxe2 {[%clk 0:00:23]} 30. Qxe2 {[%clk 0:00:13]}  Rxe2 {[%clk 0:00:23]} 31. Nd6 {[%clk 0:00:13]}  Kg8 {[%clk 0:00:16]} 32. Nxf5 {[%clk 0:00:13]}  Ne6 {[%clk 0:00:15]} 33. Ne7+ {[%clk 0:00:10]}  Kf7 {[%clk 0:00:15]} 34. Nxd5 {[%clk 0:00:11]}  cxd5 {[%clk 0:00:16]} 35. Bxd5 {[%clk 0:00:11]}  Ke7 {[%clk 0:00:16]} 36. Bc4 {[%clk 0:00:11]}  Kd6 {[%clk 0:00:15]} 37. Kg2 {[%clk 0:00:11]}  f5 {[%clk 0:00:14]} 38. Kf3 {[%clk 0:00:11]}  Rb2 {[%clk 0:00:13]} 39. Bxe6 {[%clk 0:00:11]}  Kxe6 {[%clk 0:00:11]} 40. Bxc5 {[%clk 0:00:12]}  Kd5 {[%clk 0:00:10]} 41. Bf2 {[%clk 0:00:10]}  Bd4 {[%clk 0:00:08]} 42. Bxd4 {[%clk 0:00:10]}  Kxd4 {[%clk 0:00:09]} 43. Ra1 {[%clk 0:00:09]}  Rxh2 {[%clk 0:00:00]} 44. Ra5 {[%clk 0:00:07]} 1-0

[Event "December 12 Late 2023"]
[Site "https://www.chess.com"]
[Date "2023.12.12"]
[Round "5"]
[White "Hernandez Jimenez, Alexander Andres"]
[Black "Novikova, Margarita"]
[Result "0-1"]
[Board "128"]
[TimeControl "180+1"]
[WhiteFideId "3900452"]
[BlackFideId "14109689"]
[WhiteElo "2311"]
[BlackElo "2126"]
[WhiteTeam "VEN"]
[BlackTeam "GER"]
[WhiteClock "0:00:25"]
[BlackClock "0:01:41"]

1. e4 {[%clk 0:03:00]}  d5 {[%clk 0:02:59]} 2. exd5 {[%clk 0:03:00]}  Qxd5 {[%clk 0:03:00]} 3. Nc3 {[%clk 0:03:00]}  Qd6 {[%clk 0:03:00]} 4. d3 {[%clk 0:02:59]}  Nf6 {[%clk 0:03:01]} 5. g3 {[%clk 0:02:59]}  c6 {[%clk 0:02:59]} 6. Bg2 {[%clk 0:02:59]}  e5 {[%clk 0:02:59]} 7. Nf3 {[%clk 0:02:59]}  Qc7 {[%clk 0:02:59]} 8. O-O {[%clk 0:03:00]}  Bd6 {[%clk 0:02:59]} 9. Re1 {[%clk 0:03:00]}  O-O {[%clk 0:02:58]} 10. a3 {[%clk 0:03:00]}  a5 {[%clk 0:02:57]} 11. Bg5 {[%clk 0:02:54]}  Nbd7 {[%clk 0:02:56]} 12. Ne4 {[%clk 0:02:54]}  Nxe4 {[%clk 0:02:53]} 13. dxe4 {[%clk 0:02:52]}  f6 {[%clk 0:02:49]} 14. Be3 {[%clk 0:02:51]}  Bc5 {[%clk 0:02:47]} 15. Nh4 {[%clk 0:02:47]}  g6 {[%clk 0:02:36]} 16. Bh3 {[%clk 0:02:46]}  Bxe3 {[%clk 0:02:31]} 17. Rxe3 {[%clk 0:02:45]}  Nc5 {[%clk 0:02:26]} 18. Bxc8 {[%clk 0:02:43]}  Raxc8 {[%clk 0:02:25]} 19. Qg4 {[%clk 0:02:42]}  Qd7 {[%clk 0:02:22]} 20. Qxd7 {[%clk 0:02:31]}  Nxd7 {[%clk 0:02:23]} 21. Rd1 {[%clk 0:02:31]}  Nc5 {[%clk 0:02:19]} 22. f3 {[%clk 0:02:30]}  Rfd8 {[%clk 0:02:11]} 23. Ree1 {[%clk 0:02:28]}  Na4 {[%clk 0:02:05]} 24. b3 {[%clk 0:02:20]}  Nc3 {[%clk 0:02:02]} 25. Rxd8+ {[%clk 0:01:52]}  Rxd8 {[%clk 0:02:01]} 26. Ng2 {[%clk 0:01:39]}  Rd2 {[%clk 0:01:59]} 27. Ne3 {[%clk 0:01:39]}  Ne2+ {[%clk 0:01:50]} 28. Kf1 {[%clk 0:01:04]}  Nd4 {[%clk 0:01:48]} 29. Rd1 {[%clk 0:01:01]}  Rxh2 {[%clk 0:01:45]} 30. b4 {[%clk 0:00:41]}  axb4 {[%clk 0:01:43]} 31. axb4 {[%clk 0:00:41]}  Rh1+ {[%clk 0:01:42]} 32. Kf2 {[%clk 0:00:40]}  Rxd1 {[%clk 0:01:41]} 33. Nxd1 {[%clk 0:00:25]}  Nxc2 {[%clk 0:01:41]} 0-1

[Event "December 12 Late 2023"]
[Site "https://www.chess.com"]
[Date "2023.12.12"]
[Round "5"]
[White "Silvestre, Christian"]
[Black "Oliveira, Tiago Batista"]
[Result "1-0"]
[Board "129"]
[TimeControl "180+1"]
[WhiteFideId "30956269"]
[BlackFideId "2108291"]
[WhiteElo "2310"]
[BlackElo "2091"]
[WhiteTeam "USA"]
[BlackTeam "BRA"]
[WhiteClock "0:01:05"]
[BlackClock "0:00:00"]

1. e4 {[%clk 0:03:00]}  e5 {[%clk 0:02:57]} 2. d4 {[%clk 0:03:00]}  exd4 {[%clk 0:02:56]} 3. Nf3 {[%clk 0:03:00]}  Nc6 {[%clk 0:02:56]} 4. Nxd4 {[%clk 0:02:59]}  Nf6 {[%clk 0:02:40]} 5. Bb5 {[%clk 0:02:57]}  Bc5 {[%clk 0:02:27]} 6. Nb3 {[%clk 0:02:54]}  Bb4+ {[%clk 0:02:11]} 7. c3 {[%clk 0:02:41]}  Be7 {[%clk 0:02:11]} 8. O-O {[%clk 0:02:36]}  O-O {[%clk 0:02:08]} 9. Re1 {[%clk 0:02:36]}  d6 {[%clk 0:02:04]} 10. Bf1 {[%clk 0:02:16]}  Bg4 {[%clk 0:02:00]} 11. f3 {[%clk 0:02:12]}  Bh5 {[%clk 0:02:00]} 12. Be3 {[%clk 0:02:12]}  Bg6 {[%clk 0:01:58]} 13. Nd4 {[%clk 0:02:12]}  Ne5 {[%clk 0:01:54]} 14. Nd2 {[%clk 0:02:12]}  Re8 {[%clk 0:01:53]} 15. Nc4 {[%clk 0:02:11]}  Bf8 {[%clk 0:01:50]} 16. Bf2 {[%clk 0:02:08]}  Qd7 {[%clk 0:01:23]} 17. Nb3 {[%clk 0:01:58]}  Rad8 {[%clk 0:01:20]} 18. Nxe5 {[%clk 0:01:57]}  dxe5 {[%clk 0:01:20]} 19. Qxd7 {[%clk 0:01:56]}  Rxd7 {[%clk 0:01:20]} 20. Rad1 {[%clk 0:01:56]}  Red8 {[%clk 0:01:19]} 21. Rxd7 {[%clk 0:01:55]}  Rxd7 {[%clk 0:01:19]} 22. Bb5 {[%clk 0:01:46]}  c6 {[%clk 0:01:17]} 23. Be2 {[%clk 0:01:46]}  b6 {[%clk 0:01:17]} 24. Rd1 {[%clk 0:01:46]}  h5 {[%clk 0:01:14]} 25. Rxd7 {[%clk 0:01:43]}  Nxd7 {[%clk 0:01:14]} 26. a4 {[%clk 0:01:40]}  f6 {[%clk 0:01:13]} 27. Bc4+ {[%clk 0:01:39]}  Bf7 {[%clk 0:01:14]} 28. Bxf7+ {[%clk 0:01:39]}  Kxf7 {[%clk 0:01:14]} 29. Kf1 {[%clk 0:01:40]}  Ke6 {[%clk 0:01:13]} 30. Ke2 {[%clk 0:01:40]}  g6 {[%clk 0:00:57]} 31. a5 {[%clk 0:01:39]}  Bh6 {[%clk 0:00:47]} 32. axb6 {[%clk 0:01:31]}  axb6 {[%clk 0:00:46]} 33. Nd2 {[%clk 0:01:32]}  Bxd2 {[%clk 0:00:36]} 34. Kxd2 {[%clk 0:01:32]}  c5 {[%clk 0:00:36]} 35. Kd3 {[%clk 0:01:32]}  Kd6 {[%clk 0:00:34]} 36. Kc4 {[%clk 0:01:32]}  Kc6 {[%clk 0:00:34]} 37. b3 {[%clk 0:01:31]}  b5+ {[%clk 0:00:35]} 38. Kd3 {[%clk 0:01:31]}  Nf8 {[%clk 0:00:29]} 39. Be3 {[%clk 0:01:32]}  Ne6 {[%clk 0:00:28]} 40. g3 {[%clk 0:01:32]}  Kd6 {[%clk 0:00:20]} 41. f4 {[%clk 0:01:32]}  exf4 {[%clk 0:00:15]} 42. gxf4 {[%clk 0:01:33]}  g5 {[%clk 0:00:12]} 43. f5 {[%clk 0:01:29]}  Nc7 {[%clk 0:00:10]} 44. Bf2 {[%clk 0:01:25]}  Kc6 {[%clk 0:00:10]} 45. h4 {[%clk 0:01:24]}  Ne8 {[%clk 0:00:09]} 46. hxg5 {[%clk 0:01:22]}  fxg5 {[%clk 0:00:08]} 47. e5 {[%clk 0:01:23]}  Kd5 {[%clk 0:00:08]} 48. Bg3 {[%clk 0:01:22]}  h4 {[%clk 0:00:08]} 49. c4+ {[%clk 0:01:22]}  bxc4+ {[%clk 0:00:08]} 50. bxc4+ {[%clk 0:01:23]}  Kc6 {[%clk 0:00:08]} 51. Bf2 {[%clk 0:01:22]}  Ng7 {[%clk 0:00:06]} 52. Ke4 {[%clk 0:01:21]}  h3 {[%clk 0:00:04]} 53. Bg3 {[%clk 0:01:19]}  Kd7 {[%clk 0:00:01]} 54. e6+ {[%clk 0:01:13]}  Ke7 {[%clk 0:00:02]} 55. Ke5 {[%clk 0:01:12]}  Nh5 {[%clk 0:00:02]} 56. Bf2 {[%clk 0:01:09]}  Nf6 {[%clk 0:00:02]} 57. Bxc5+ {[%clk 0:01:07]}  Ke8 {[%clk 0:00:03]} 58. Bg1 {[%clk 0:01:04]}  Ng4+ {[%clk 0:00:03]} 59. Kd6 {[%clk 0:01:05]}  h2 {[%clk 0:00:03]} 60. Bxh2 {[%clk 0:01:05]}  Nxh2 {[%clk 0:00:03]} 61. c5 {[%clk 0:01:05]}  Ng4 {[%clk 0:00:03]} 62. c6 {[%clk 0:01:06]}  Nf6 {[%clk 0:00:03]} 63. c7 {[%clk 0:01:05]}  Ne4+ {[%clk 0:00:00]} 64. Ke5 {[%clk 0:01:05]} 1-0

[Event "December 12 Late 2023"]
[Site "https://www.chess.com"]
[Date "2023.12.12"]
[Round "5"]
[White "Nilsson, Joakim"]
[Black "Dubreuil, Julien"]
[Result "1-0"]
[Board "134"]
[TimeControl "180+1"]
[WhiteFideId "1723383"]
[BlackFideId "621285"]
[WhiteElo "2426"]
[BlackElo "2309"]
[WhiteTeam "SWE"]
[BlackTeam "FRA"]
[WhiteClock "0:00:54"]
[BlackClock "0:00:04"]

1. d4 {[%clk 0:03:00]}  Nf6 {[%clk 0:02:59]} 2. Nf3 {[%clk 0:02:55]}  e6 {[%clk 0:02:52]} 3. Bg5 {[%clk 0:02:50]}  c5 {[%clk 0:02:51]} 4. e3 {[%clk 0:02:47]}  Qb6 {[%clk 0:02:51]} 5. Nbd2 {[%clk 0:02:46]}  d5 {[%clk 0:02:45]} 6. dxc5 {[%clk 0:02:21]}  Bxc5 {[%clk 0:02:40]} 7. Bd3 {[%clk 0:02:16]}  Nbd7 {[%clk 0:02:36]} 8. O-O {[%clk 0:02:12]}  Qxb2 {[%clk 0:02:35]} 9. e4 {[%clk 0:02:00]}  dxe4 {[%clk 0:02:03]} 10. Nxe4 {[%clk 0:02:01]}  Nxe4 {[%clk 0:01:47]} 11. Bxe4 {[%clk 0:02:00]}  Nf6 {[%clk 0:01:40]} 12. Rb1 {[%clk 0:01:58]}  Qxa2 {[%clk 0:01:17]} 13. Bxb7 {[%clk 0:01:37]}  Bxb7 {[%clk 0:01:12]} 14. Rxb7 {[%clk 0:01:38]}  Rd8 {[%clk 0:01:06]} 15. Qe2 {[%clk 0:01:33]}  Qd5 {[%clk 0:01:05]} 16. Qb5+ {[%clk 0:01:30]}  Kf8 {[%clk 0:01:03]} 17. c4 {[%clk 0:01:09]}  Qd6 {[%clk 0:00:32]} 18. Bf4 {[%clk 0:01:07]}  Qxf4 {[%clk 0:00:22]} 19. Qxc5+ {[%clk 0:01:07]}  Qd6 {[%clk 0:00:20]} 20. Qxd6+ {[%clk 0:01:02]}  Rxd6 {[%clk 0:00:19]} 21. Ne5 {[%clk 0:01:02]}  h5 {[%clk 0:00:11]} 22. Nxf7 {[%clk 0:00:55]}  Rc6 {[%clk 0:00:04]} 23. Nxh8 {[%clk 0:00:54]} 1-0

[Event "December 12 Late 2023"]
[Site "https://www.chess.com"]
[Date "2023.12.12"]
[Round "5"]
[White "Floresvillar Gonzalez, Luis Migu"]
[Black "Zampronha, Wladimir Camilo"]
[Result "0-1"]
[Board "135"]
[TimeControl "180+1"]
[WhiteFideId "5100542"]
[BlackFideId "2103087"]
[WhiteElo "2207"]
[BlackElo "2349"]
[WhiteTeam "MEX"]
[BlackTeam "BRA"]
[WhiteClock "0:00:00"]
[BlackClock "0:00:59"]

1. d4 {[%clk 0:03:00]}  Nf6 {[%clk 0:02:59]} 2. c3 {[%clk 0:02:59]}  b6 {[%clk 0:02:57]} 3. Bg5 {[%clk 0:02:56]}  Ne4 {[%clk 0:02:55]} 4. h4 {[%clk 0:02:55]}  Bb7 {[%clk 0:02:54]} 5. Nd2 {[%clk 0:02:54]}  Nxd2 {[%clk 0:02:52]} 6. Qxd2 {[%clk 0:02:54]}  h6 {[%clk 0:02:48]} 7. Bf4 {[%clk 0:02:52]}  c5 {[%clk 0:02:48]} 8. e3 {[%clk 0:02:50]}  d6 {[%clk 0:02:48]} 9. Nf3 {[%clk 0:02:49]}  Nd7 {[%clk 0:02:48]} 10. a4 {[%clk 0:02:43]}  Qc7 {[%clk 0:02:45]} 11. dxc5 {[%clk 0:02:37]}  Nxc5 {[%clk 0:02:43]} 12. Bb5+ {[%clk 0:02:33]}  Bc6 {[%clk 0:02:42]} 13. O-O {[%clk 0:02:29]}  Nb3 {[%clk 0:02:41]} 14. Qd5 {[%clk 0:02:19]}  Na5 {[%clk 0:02:36]} 15. Nd4 {[%clk 0:02:08]}  Rc8 {[%clk 0:02:30]} 16. Nxc6 {[%clk 0:02:06]}  Nxc6 {[%clk 0:02:29]} 17. a5 {[%clk 0:01:55]}  e6 {[%clk 0:02:29]} 18. Qxc6+ {[%clk 0:01:45]}  Qxc6 {[%clk 0:02:30]} 19. Bxc6+ {[%clk 0:01:45]}  Rxc6 {[%clk 0:02:31]} 20. axb6 {[%clk 0:01:44]}  axb6 {[%clk 0:02:27]} 21. Ra8+ {[%clk 0:01:38]}  Kd7 {[%clk 0:02:27]} 22. Rfa1 {[%clk 0:01:37]}  e5 {[%clk 0:02:25]} 23. R1a7+ {[%clk 0:01:26]}  Rc7 {[%clk 0:02:17]} 24. Rxc7+ {[%clk 0:01:22]}  Kxc7 {[%clk 0:02:18]} 25. Bg3 {[%clk 0:01:20]}  Kd7 {[%clk 0:02:13]} 26. f4 {[%clk 0:01:18]}  exf4 {[%clk 0:01:59]} 27. Bxf4 {[%clk 0:01:10]}  g6 {[%clk 0:02:00]} 28. Rb8 {[%clk 0:01:01]}  Kc7 {[%clk 0:01:56]} 29. Re8 {[%clk 0:00:58]}  Kd7 {[%clk 0:01:54]} 30. Rb8 {[%clk 0:00:56]}  Kc7 {[%clk 0:01:55]} 31. Re8 {[%clk 0:00:55]}  Kd7 {[%clk 0:01:55]} 32. Ra8 {[%clk 0:00:52]}  Bg7 {[%clk 0:01:53]} 33. Ra7+ {[%clk 0:00:50]}  Ke6 {[%clk 0:01:50]} 34. Rb7 {[%clk 0:00:49]}  Be5 {[%clk 0:01:37]} 35. Rxb6 {[%clk 0:00:47]}  Bxf4 {[%clk 0:01:37]} 36. exf4 {[%clk 0:00:46]}  Ra8 {[%clk 0:01:33]} 37. Kf2 {[%clk 0:00:45]}  Ra1 {[%clk 0:01:30]} 38. g3 {[%clk 0:00:44]}  Rd1 {[%clk 0:01:26]} 39. c4 {[%clk 0:00:41]}  Kf5 {[%clk 0:01:23]} 40. Rb7 {[%clk 0:00:37]}  f6 {[%clk 0:01:22]} 41. Kf3 {[%clk 0:00:31]}  Rd3+ {[%clk 0:01:21]} 42. Kf2 {[%clk 0:00:31]}  Kg4 {[%clk 0:01:21]} 43. Rg7 {[%clk 0:00:26]}  Kf5 {[%clk 0:01:09]} 44. b4 {[%clk 0:00:19]}  Rc3 {[%clk 0:01:00]} 45. c5 {[%clk 0:00:17]}  dxc5 {[%clk 0:01:00]} 46. bxc5 {[%clk 0:00:16]}  Rc2+ {[%clk 0:01:00]} 47. Kf3 {[%clk 0:00:15]}  Rc3+ {[%clk 0:01:00]} 48. Kg2 {[%clk 0:00:14]}  Rxc5 {[%clk 0:01:01]} 49. Kh3 {[%clk 0:00:13]}  h5 {[%clk 0:01:01]} 50. Rb7 {[%clk 0:00:11]}  Ra5 {[%clk 0:01:00]} 51. Rb6 {[%clk 0:00:10]}  Rc5 {[%clk 0:00:59]} 52. Ra6 {[%clk 0:00:10]}  Rd5 {[%clk 0:00:55]} 53. Rb6 {[%clk 0:00:10]}  Ra5 {[%clk 0:00:54]} 54. Rc6 {[%clk 0:00:10]}  Rb5 {[%clk 0:00:55]} 55. Ra6 {[%clk 0:00:10]}  Rb1 {[%clk 0:00:53]} 56. Ra5+ {[%clk 0:00:09]}  Ke6 {[%clk 0:00:54]} 57. Ra6+ {[%clk 0:00:09]}  Kf7 {[%clk 0:00:54]} 58. Ra7+ {[%clk 0:00:08]}  Kg8 {[%clk 0:00:55]} 59. Kh2 {[%clk 0:00:05]}  Rd1 {[%clk 0:00:55]} 60. Kh3 {[%clk 0:00:05]}  Rd5 {[%clk 0:00:55]} 61. Kg2 {[%clk 0:00:05]}  Rd8 {[%clk 0:00:56]} 62. Kh3 {[%clk 0:00:04]}  Rd1 {[%clk 0:00:57]} 63. Kg2 {[%clk 0:00:04]}  Rd2+ {[%clk 0:00:57]} 64. Kh3 {[%clk 0:00:04]}  Rc2 {[%clk 0:00:58]} 65. Rb7 {[%clk 0:00:02]}  Re2 {[%clk 0:00:58]} 66. Ra7 {[%clk 0:00:02]}  Re6 {[%clk 0:00:59]} 67. Rb7 {[%clk 0:00:03]}  Kf8 {[%clk 0:00:58]} 68. Ra7 {[%clk 0:00:03]}  Re7 {[%clk 0:00:58]} 69. Rxe7 {[%clk 0:00:02]}  Kxe7 {[%clk 0:00:59]} 70. g4 {[%clk 0:00:00]}  Ke6 {[%clk 0:00:59]} 0-1

[Event "December 12 Late 2023"]
[Site "https://www.chess.com"]
[Date "2023.12.12"]
[Round "5"]
[White "ogpin"]
[Black "Omariev, Maksim"]
[Result "0-1"]
[Board "137"]
[TimeControl "180+1"]
[BlackFideId "4193423"]
[WhiteElo "2131"]
[BlackElo "2473"]
[BlackTeam "RUS"]
[WhiteClock "0:00:00"]
[BlackClock "0:00:21"]

1. e4 {[%clk 0:03:00]}  c5 {[%clk 0:02:58]} 2. d4 {[%clk 0:03:00]}  cxd4 {[%clk 0:02:58]} 3. c3 {[%clk 0:03:00]}  dxc3 {[%clk 0:02:59]} 4. Nxc3 {[%clk 0:03:01]}  e6 {[%clk 0:03:00]} 5. Nf3 {[%clk 0:03:01]}  a6 {[%clk 0:03:01]} 6. Bc4 {[%clk 0:03:01]}  Nc6 {[%clk 0:03:02]} 7. O-O {[%clk 0:03:02]}  Nge7 {[%clk 0:03:02]} 8. Bg5 {[%clk 0:03:01]}  f6 {[%clk 0:03:03]} 9. Be3 {[%clk 0:03:00]}  Ng6 {[%clk 0:03:03]} 10. Qe2 {[%clk 0:02:49]}  b5 {[%clk 0:03:04]} 11. Bb3 {[%clk 0:02:49]}  Bb7 {[%clk 0:03:04]} 12. Nd4 {[%clk 0:02:43]}  Bd6 {[%clk 0:02:53]} 13. Rad1 {[%clk 0:02:32]}  Qe7 {[%clk 0:02:53]} 14. Rfe1 {[%clk 0:02:10]}  Nxd4 {[%clk 0:02:43]} 15. Bxd4 {[%clk 0:02:07]}  O-O {[%clk 0:02:41]} 16. g3 {[%clk 0:01:58]}  Kh8 {[%clk 0:02:25]} 17. Qh5 {[%clk 0:01:53]}  Rac8 {[%clk 0:01:45]} 18. Bc2 {[%clk 0:01:53]}  e5 {[%clk 0:01:33]} 19. Be3 {[%clk 0:01:25]}  b4 {[%clk 0:01:32]} 20. Nd5 {[%clk 0:00:53]}  Bxd5 {[%clk 0:01:30]} 21. Rxd5 {[%clk 0:00:54]}  Rxc2 {[%clk 0:01:31]} 22. Red1 {[%clk 0:00:54]}  Rc6 {[%clk 0:01:30]} 23. Qf5 {[%clk 0:00:49]}  Rfc8 {[%clk 0:01:27]} 24. h4 {[%clk 0:00:49]}  Nf8 {[%clk 0:01:21]} 25. h5 {[%clk 0:00:49]}  Bc5 {[%clk 0:01:17]} 26. Bxc5 {[%clk 0:00:42]}  Rxc5 {[%clk 0:01:16]} 27. Rxd7 {[%clk 0:00:36]}  Nxd7 {[%clk 0:00:57]} 28. Rxd7 {[%clk 0:00:37]}  Qf8 {[%clk 0:00:57]} 29. h6 {[%clk 0:00:33]}  g6 {[%clk 0:00:54]} 30. Qe6 {[%clk 0:00:28]}  R5c7 {[%clk 0:00:48]} 31. Rd6 {[%clk 0:00:17]}  Re8 {[%clk 0:00:46]} 32. Qd5 {[%clk 0:00:10]}  Qxh6 {[%clk 0:00:36]} 33. Kg2 {[%clk 0:00:06]}  Rc1 {[%clk 0:00:35]} 34. Kf3 {[%clk 0:00:02]}  Qh5+ {[%clk 0:00:32]} 35. Ke3 {[%clk 0:00:02]}  Qg5+ {[%clk 0:00:29]} 36. Kf3 {[%clk 0:00:02]}  Qh5+ {[%clk 0:00:28]} 37. Ke3 {[%clk 0:00:02]}  Re1+ {[%clk 0:00:19]} 38. Kd2 {[%clk 0:00:02]}  Rd1+ {[%clk 0:00:20]} 39. Kc2 {[%clk 0:00:03]}  Rxd5 {[%clk 0:00:21]} 40. Rxd5 {[%clk 0:00:04]}  Rc8+ {[%clk 0:00:20]} 41. Kb3 {[%clk 0:00:04]}  Qf3+ {[%clk 0:00:20]} 42. Kxb4 {[%clk 0:00:04]}  Qxe4+ {[%clk 0:00:21]} 43. Ka5 {[%clk 0:00:00]}  Qxd5+ {[%clk 0:00:21]} 0-1

[Event "December 12 Late 2023"]
[Site "https://www.chess.com"]
[Date "2023.12.12"]
[Round "5"]
[White "Dilmukhametov, Artur"]
[Black "Powell, Paul"]
[Result "0-1"]
[Board "140"]
[TimeControl "180+1"]
[WhiteFideId "24179922"]
[BlackFideId "2005840"]
[WhiteElo "2390"]
[BlackElo "2119"]
[WhiteTeam "RUS"]
[BlackTeam "USA"]
[WhiteClock "0:00:00"]
[BlackClock "0:00:18"]

1. e4 {[%clk 0:02:56]}  c5 {[%clk 0:02:58]} 2. d4 {[%clk 0:02:56]}  cxd4 {[%clk 0:02:58]} 3. c3 {[%clk 0:02:56]}  dxc3 {[%clk 0:02:58]} 4. Nxc3 {[%clk 0:02:57]}  d6 {[%clk 0:02:58]} 5. Nf3 {[%clk 0:02:57]}  e6 {[%clk 0:02:57]} 6. Bc4 {[%clk 0:02:57]}  a6 {[%clk 0:02:57]} 7. O-O {[%clk 0:02:58]}  b5 {[%clk 0:02:57]} 8. Bb3 {[%clk 0:02:58]}  Ra7 {[%clk 0:02:58]} 9. Be3 {[%clk 0:02:47]}  Rd7 {[%clk 0:02:57]} 10. Rc1 {[%clk 0:02:48]}  Bb7 {[%clk 0:02:57]} 11. Qe2 {[%clk 0:02:29]}  Nc6 {[%clk 0:02:53]} 12. Rfd1 {[%clk 0:02:25]}  Nf6 {[%clk 0:02:52]} 13. Bg5 {[%clk 0:02:10]}  Be7 {[%clk 0:02:52]} 14. h4 {[%clk 0:01:53]}  O-O {[%clk 0:02:50]} 15. Bc2 {[%clk 0:01:50]}  h6 {[%clk 0:02:34]} 16. Bxf6 {[%clk 0:01:46]}  Bxf6 {[%clk 0:02:34]} 17. h5 {[%clk 0:01:32]}  Qe7 {[%clk 0:02:17]} 18. Bb1 {[%clk 0:01:31]}  Ne5 {[%clk 0:01:03]} 19. a3 {[%clk 0:01:12]}  Rc7 {[%clk 0:00:54]} 20. Nh2 {[%clk 0:00:48]}  Bg5 {[%clk 0:00:49]} 21. Rc2 {[%clk 0:00:26]}  f5 {[%clk 0:00:38]} 22. g3 {[%clk 0:00:16]}  f4 {[%clk 0:00:34]} 23. Nf3 {[%clk 0:00:12]}  fxg3 {[%clk 0:00:29]} 24. Nxg5 {[%clk 0:00:00]}  Rxf2 {[%clk 0:00:18]} 0-1

[Event "December 12 Late 2023"]
[Site "https://www.chess.com"]
[Date "2023.12.12"]
[Round "5"]
[White "Kostiukov, Alexandr"]
[Black "Travadon, Loic"]
[Result "0-1"]
[Board "141"]
[TimeControl "180+1"]
[WhiteFideId "14108100"]
[BlackFideId "26092131"]
[WhiteElo "2364"]
[BlackElo "2118"]
[WhiteTeam "UKR"]
[BlackTeam "FRA"]
[WhiteClock "0:00:36"]
[BlackClock "0:01:17"]

1. g3 {[%clk 0:02:48]}  e5 {[%clk 0:02:58]} 2. Bg2 {[%clk 0:02:48]}  Nc6 {[%clk 0:02:59]} 3. c4 {[%clk 0:02:48]}  Bc5 {[%clk 0:02:56]} 4. Nc3 {[%clk 0:02:45]}  d6 {[%clk 0:02:56]} 5. e3 {[%clk 0:02:46]}  a6 {[%clk 0:02:56]} 6. Nge2 {[%clk 0:02:46]}  Ba7 {[%clk 0:02:56]} 7. O-O {[%clk 0:02:45]}  h5 {[%clk 0:02:56]} 8. h3 {[%clk 0:02:44]}  h4 {[%clk 0:02:50]} 9. g4 {[%clk 0:02:44]}  f5 {[%clk 0:02:50]} 10. f3 {[%clk 0:02:44]}  Nf6 {[%clk 0:02:48]} 11. d4 {[%clk 0:02:43]}  Qe7 {[%clk 0:02:45]} 12. d5 {[%clk 0:02:01]}  Nd8 {[%clk 0:02:43]} 13. Kh1 {[%clk 0:02:01]}  Nf7 {[%clk 0:02:38]} 14. e4 {[%clk 0:01:58]}  f4 {[%clk 0:02:37]} 15. Bd2 {[%clk 0:01:56]}  Ng5 {[%clk 0:02:37]} 16. Be1 {[%clk 0:01:55]}  Bd7 {[%clk 0:02:34]} 17. Bf2 {[%clk 0:01:55]}  Bxf2 {[%clk 0:02:28]} 18. Rxf2 {[%clk 0:01:56]}  b5 {[%clk 0:02:22]} 19. cxb5 {[%clk 0:01:52]}  axb5 {[%clk 0:02:21]} 20. Qb3 {[%clk 0:01:51]}  Kf7 {[%clk 0:02:17]} 21. Nxb5 {[%clk 0:01:46]}  Rhb8 {[%clk 0:02:16]} 22. Nec3 {[%clk 0:01:46]}  Ra5 {[%clk 0:02:11]} 23. Qb4 {[%clk 0:01:30]}  Raxb5 {[%clk 0:02:06]} 24. Nxb5 {[%clk 0:01:31]}  Rxb5 {[%clk 0:02:07]} 25. Qc3 {[%clk 0:01:31]}  Qd8 {[%clk 0:02:01]} 26. Rc2 {[%clk 0:01:29]}  Rc5 {[%clk 0:02:01]} 27. Qd2 {[%clk 0:01:28]}  Rxc2 {[%clk 0:01:57]} 28. Qxc2 {[%clk 0:01:29]}  Bb5 {[%clk 0:01:55]} 29. a4 {[%clk 0:01:23]}  Ba6 {[%clk 0:01:54]} 30. b4 {[%clk 0:01:24]}  Qb8 {[%clk 0:01:47]} 31. b5 {[%clk 0:01:23]}  Bc8 {[%clk 0:01:46]} 32. Qc4 {[%clk 0:01:20]}  Bd7 {[%clk 0:01:45]} 33. Ra3 {[%clk 0:01:14]}  Qb6 {[%clk 0:01:45]} 34. Qc2 {[%clk 0:01:07]}  Ne8 {[%clk 0:01:41]} 35. Bf1 {[%clk 0:01:02]}  Nxf3 {[%clk 0:01:39]} 36. Rxf3 {[%clk 0:01:01]}  g5 {[%clk 0:01:35]} 37. Qf2 {[%clk 0:00:57]}  Qa5 {[%clk 0:01:34]} 38. Qc2 {[%clk 0:00:55]}  Ke7 {[%clk 0:01:34]} 39. Ra3 {[%clk 0:00:50]}  Kd8 {[%clk 0:01:33]} 40. Kg2 {[%clk 0:00:50]}  Nf6 {[%clk 0:01:30]} 41. Qf2 {[%clk 0:00:48]}  Be8 {[%clk 0:01:29]} 42. Bd3 {[%clk 0:00:47]}  Nd7 {[%clk 0:01:28]} 43. Qb2 {[%clk 0:00:47]}  Nc5 {[%clk 0:01:28]} 44. Bb1 {[%clk 0:00:46]}  Bd7 {[%clk 0:01:28]} 45. Rc3 {[%clk 0:00:45]}  Nxa4 {[%clk 0:01:27]} 46. Ra3 {[%clk 0:00:44]}  Bxb5 {[%clk 0:01:18]} 47. Bc2 {[%clk 0:00:41]}  Qd2+ {[%clk 0:01:18]} 48. Kg1 {[%clk 0:00:36]}  Nxb2 {[%clk 0:01:17]} 0-1